[Event "23rd Hogeschool Zeeland Open 2019"]
[Site "Vlissingen"]
[Date "2019.08.04"]
[Round "2.5"]
[White "Werle, Jan"]
[Black "Le Clercq, Maxim"]
[Result "1-0"]
[ECO "E17"]
[WhiteElo "2555"]
[BlackElo "1930"]
[Annotator "ChessBase"]
[PlyCount "48"]
[EventDate "2019.08.03"]
[EventType "swiss"]
[EventCountry "NED"]
[SourceTitle "playchess.com"]
[Source "ChessBase"]
[SourceQuality "1"]
[TimeControl "40/5400+30:1800+30"]

1. Nf3 {[%emt 0:00:00]} Nf6 {[%emt 0:02:06]} 2. c4 {[%emt 0:00:00]} e6 {[%emt 0:00:46]} 3. g3 {[%emt 0:00:59]} b6 {[%emt 0:01:57]} 4. Bg2 {[%emt 0:00:06]} Bb7 {[%emt 0:01:03]} 5. O-O {[%emt 0:00:36]} Be7 {[%emt 0:04:05]} 6. d4 {[%emt 0:02:31]} O-O {[%emt 0:01:27]} 7. Re1 {[%emt 0:00:13]} c5 {[%emt 0:07:07]} 8. d5 {[%emt 0:02:02]} exd5 {[%emt 0:04:36]} 9. Nh4 {[%emt 0:01:24]} d6 {[%emt 0:13:19]} 10. Nf5 {[%emt 0:04:07]} Nbd7 {[%emt 0:01:45]} 11. Nc3 {[%emt 0:03:52]} Re8 {[%emt 0:02:10]} 12. Nxe7+ {[%emt 0:07:59]} Qxe7 {[%emt 0:02:14]} 13. cxd5 {[%emt 0:00:29]} Ne5 {[%emt 0:10:01]} 14. h3 {[%emt 0:05:40]} Qd7 {[%emt 0:03:00]} 15. Bg5 {[%emt 0:10:14]} Qf5 {[%emt 0:01:06]} 16. f4 {[%emt 0:00:30]} Nc4 {[%emt 0:01:00]} 17. e4 {[%emt 0:02:03]} Qg6 {[%emt 0:00:29]} 18. b3 {[%emt 0:09:10]} Na5 {[%emt 0:02:11]} 19. Qd2 {[%emt 0:02:11]} h6 {[%emt 0:03:44]} 20. Bh4 {[%emt 0:03:03]} Ba6 {[%emt 0:07:39]} 21. e5 {[%emt 0:05:13]} dxe5 {[%emt 0:06:33]} 22. fxe5 {[%emt 0:00:09]} Qd3 {[%emt 0:00:15]} 23. Qxd3 {[%emt 0:02:01]} Bxd3 {[%emt 0:00:03]} 24. d6 {[%emt 0:37:28]} Nc6 {[%emt 0:23:24]} 1-0

[Event "23rd Hogeschool Zeeland Open 2019"]
[Site "Vlissingen"]
[Date "2019.08.04"]
[Round "2.6"]
[White "Berghuis, Marten"]
[Black "Ikonnikov, Vyacheslav"]
[Result "0-1"]
[ECO "B30"]
[WhiteElo "2031"]
[BlackElo "2499"]
[Annotator "ChessBase"]
[PlyCount "56"]
[EventDate "2019.08.03"]
[EventType "swiss"]
[EventCountry "NED"]
[SourceTitle "playchess.com"]
[Source "ChessBase"]
[SourceQuality "1"]
[TimeControl "40/5400+30:1800+30"]

1. e4 {[%emt 0:00:00]} c5 {[%emt 0:00:00]} 2. Nf3 {[%emt 0:00:00]} Nc6 {[%emt 0:00:00]} 3. Nc3 {[%emt 0:00:03]} e5 {[%emt 0:01:31]} 4. Bc4 {[%emt 0:00:24]} Be7 {[%emt 0:00:24]} 5. d3 {[%emt 0:01:23]} d6 {[%emt 0:00:09]} 6. h3 {[%emt 0:01:43]} Nf6 {[%emt 0:00:23]} 7. O-O {[%emt 0:00:31]} O-O {[%emt 0:00:07]} 8. Nh2 {[%emt 0:07:04]} Nd7 {[%emt 0:03:08]} 9. a4 {[%emt 0:02:52]} Nb6 {[%emt 0:01:00]} 10. Ba2 {[%emt 0:02:22]} Nb4 {[%emt 0:03:41]} 11. a5 {[%emt 0:11:05]} Nxa2 {[%emt 0:00:47]} 12. Rxa2 {[%emt 0:00:08]} Nd7 {[%emt 0:00:10]} 13. Nd5 {[%emt 0:00:39]} Nb8 {[%emt 0:06:06]} 14. f4 {[%emt 0:05:53]} exf4 {[%emt 0:01:09]} 15. Bxf4 {[%emt 0:00:24]} Nc6 {[%emt 0:00:16]} 16. Nf3 {[%emt 0:02:28]} Be6 {[%emt 0:01:26]} 17. c4 {[%emt 0:03:09]} f5 {[%emt 0:05:17]} 18. Qd2 {[%emt 0:02:44]} Qd7 {[%emt 0:02:34]} 19. Ng5 {[%emt 0:08:55]} Bxg5 {[%emt 0:03:24]} 20. Bxg5 {[%emt 0:00:37]} fxe4 {[%emt 0:00:41]} 21. Rxf8+ {[%emt 0:04:10]} Rxf8 {[%emt 0:00:06]} 22. dxe4 {[%emt 0:00:11]} Ne5 {[%emt 0:02:51]} 23. b3 {[%emt 0:03:39]} Bxh3 {[%emt 0:05:53]} 24. Be7 {[%emt 0:03:08]} Rf7 {[%emt 0:00:29]} 25. Qg5 {[%emt 0:02:05]} h6 {[%emt 0:00:45]} 26. Qg3 {[%emt 0:08:30]} Bg4 {[%emt 0:00:20]} 27. Bh4 {[%emt 0:12:48]} g5 {[%emt 0:02:09]} 28. Rf2 {[%emt 0:00:23]} Kg7 {[%emt 0:06:20]} 0-1

[Event "23rd Hogeschool Zeeland Open 2019"]
[Site "Vlissingen"]
[Date "2019.08.04"]
[Round "2.7"]
[White "Harika, Dronavalli"]
[Black "Van Rij, Gert"]
[Result "1-0"]
[ECO "D53"]
[WhiteElo "2492"]
[BlackElo "1960"]
[Annotator "ChessBase"]
[PlyCount "71"]
[EventDate "2019.08.03"]
[EventType "swiss"]
[EventCountry "NED"]
[SourceTitle "playchess.com"]
[Source "ChessBase"]
[SourceQuality "1"]
[TimeControl "40/5400+30:1800+30"]

1. c4 {[%emt 0:00:20]} Nf6 {[%emt 0:00:00]} 2. Nc3 {[%emt 0:00:21]} e6 {[%emt 0:01:02]} 3. Nf3 {[%emt 0:00:44]} d5 {[%emt 0:02:17]} 4. d4 {[%emt 0:01:35]} b6 {[%emt 0:03:36]} 5. Bg5 {[%emt 0:04:02]} Be7 {[%emt 0:00:16]} 6. e3 {[%emt 0:05:25]} Nbd7 {[%emt 0:01:34]} 7. cxd5 {[%emt 0:04:51]} exd5 {[%emt 0:06:18]} 8. Ne5 {[%emt 0:03:30]} Bb7 {[%emt 0:01:31]} 9. Bb5 {[%emt 0:00:48]} O-O {[%emt 0:01:58]} 10. Bc6 {[%emt 0:02:20]} Bxc6 {[%emt 0:08:43]} 11. Nxc6 {[%emt 0:00:20]} Qe8 {[%emt 0:00:09]} 12. Nxe7+ {[%emt 0:04:38]} Qxe7 {[%emt 0:00:05]} 13. Nxd5 {[%emt 0:01:18]} Qe4 {[%emt 0:03:29]} 14. Nxf6+ {[%emt 0:00:46]} gxf6 {[%emt 0:01:16]} 15. Bh6 {[%emt 0:00:52]} Qxg2 {[%emt 0:03:16]} 16. Ke2 {[%emt 0:03:02]} Qg4+ {[%emt 0:01:17]} 17. Kd2 {[%emt 0:00:13]} Qxd1+ {[%emt 0:02:13]} 18. Raxd1 {[%emt 0:00:12]} Rfc8 {[%emt 0:00:51]} 19. Rhg1+ {[%emt 0:02:02]} Kh8 {[%emt 0:00:02]} 20. Bg7+ {[%emt 0:01:32]} Kg8 {[%emt 0:00:02]} 21. Rg3 {[%emt 0:00:40]} f5 {[%emt 0:02:35]} 22. Bh6+ {[%emt 0:01:50]} Kh8 {[%emt 0:00:03]} 23. Rdg1 {[%emt 0:00:18]} f6 {[%emt 0:04:49]} 24. Bg7+ {[%emt 0:01:33]} Kg8 {[%emt 0:00:02]} 25. Bxf6+ {[%emt 0:00:15]} Kf7 {[%emt 0:00:34]} 26. Rg7+ {[%emt 0:01:05]} Ke6 {[%emt 0:02:10]} 27. Bh4 {[%emt 0:03:27]} Nf8 {[%emt 0:02:07]} 28. Re7+ {[%emt 0:00:28]} Kd6 {[%emt 0:02:25]} 29. Rgg7 {[%emt 0:01:30]} c5 {[%emt 0:02:26]} 30. Bg3+ {[%emt 0:01:49]} Kc6 {[%emt 0:02:08]} 31. Rgf7 {[%emt 0:03:16]} Rd8 {[%emt 0:11:42]} 32. Rf6+ {[%emt 0:00:54]} Kb5 {[%emt 0:00:35]} 33. Rxf5 {[%emt 0:00:14]} Kc4 {[%emt 0:02:55]} 34. Kc2 {[%emt 0:00:45]} a5 {[%emt 0:01:42]} 35. dxc5 {[%emt 0:00:41]} bxc5 {[%emt 0:00:13]} 36. Rb7 {[%emt 0:00:14]} 1-0

[Event "23rd Hogeschool Zeeland Open 2019"]
[Site "Vlissingen"]
[Date "2019.08.04"]
[Round "2.8"]
[White "Reichardt, Gert"]
[Black "Hausrath, Daniel"]
[Result "0-1"]
[ECO "B07"]
[WhiteElo "1987"]
[BlackElo "2468"]
[Annotator "ChessBase"]
[PlyCount "166"]
[EventDate "2019.08.03"]
[EventType "swiss"]
[EventCountry "NED"]
[SourceTitle "playchess.com"]
[Source "ChessBase"]
[SourceQuality "1"]
[TimeControl "40/5400+30:1800+30"]

1. e4 {[%emt 0:00:00]} g6 {[%emt 0:00:00]} 2. d4 {[%emt 0:00:00]} Bg7 {[%emt 0:00:00]} 3. Nf3 {[%emt 0:00:00]} d6 {[%emt 0:00:04]} 4. Bd3 {[%emt 0:00:47]} Nf6 {[%emt 0:02:47]} 5. c3 {[%emt 0:01:41]} O-O {[%emt 0:00:17]} 6. O-O {[%emt 0:00:21]} Nc6 {[%emt 0:04:02]} 7. h3 {[%emt 0:02:04]} e5 {[%emt 0:01:12]} 8. Bg5 {[%emt 0:04:18]} h6 {[%emt 0:01:50]} 9. dxe5 {[%emt 0:05:12]} hxg5 {[%emt 0:05:30]} 10. exf6 {[%emt 0:00:52]} Qxf6 {[%emt 0:00:06]} 11. Nh2 {[%emt 0:07:19]} Ne5 {[%emt 0:01:22]} 12. Be2 {[%emt 0:01:48]} Be6 {[%emt 0:11:24]} 13. Nd2 {[%emt 0:02:14]} Rad8 {[%emt 0:01:38]} 14. Ng4 {[%emt 0:01:27]} Nxg4 {[%emt 0:15:15]} 15. Bxg4 {[%emt 0:01:13]} d5 {[%emt 0:00:14]} 16. Bxe6 {[%emt 0:04:43]} Qxe6 {[%emt 0:00:06]} 17. Qc2 {[%emt 0:03:36]} g4 {[%emt 0:04:18]} 18. hxg4 {[%emt 0:05:12]} Qxg4 {[%emt 0:00:40]} 19. exd5 {[%emt 0:02:54]} Rxd5 {[%emt 0:00:48]} 20. Qe4 {[%emt 0:00:35]} Qxe4 {[%emt 0:09:25]} 21. Nxe4 {[%emt 0:03:10]} Re8 {[%emt 0:00:02]} 22. f3 {[%emt 0:05:25]} f5 {[%emt 0:04:52]} 23. Ng3 {[%emt 0:02:12]} Rb5 {[%emt 0:10:08]} 24. Rf2 {[%emt 0:05:15]} Bf8 {[%emt 0:03:21]} 25. Rc2 {[%emt 0:02:48]} Kf7 {[%emt 0:02:27]} 26. Rd1 {[%emt 0:07:05]} Bd6 {[%emt 0:10:43]} 27. Ne2 {[%emt 0:03:24]} Rbe5 {[%emt 0:00:47]} 28. Kf2 {[%emt 0:03:03]} Kf6 {[%emt 0:02:32]} 29. Nd4 {[%emt 0:06:56]} Rd5 {[%emt 0:02:54]} 30. c4 {[%emt 0:04:22]} Rde5 {[%emt 0:01:32]} 31. Re2 {[%emt 0:05:26]} c5 {[%emt 0:01:23]} 32. Rxe5 {[%emt 0:00:26]} Bxe5 {[%emt 0:00:02]} 33. Nb3 {[%emt 0:02:03]} b6 {[%emt 0:00:21]} 34. Rd2 {[%emt 0:00:45]} Bf4 {[%emt 0:00:21]} 35. Rd7 {[%emt 0:04:30]} a5 {[%emt 0:00:14]} 36. g3 {[%emt 0:00:26]} Be3+ {[%emt 0:00:26]} 37. Kf1 {[%emt 0:00:49]} a4 {[%emt 0:01:11]} 38. Nd2 {[%emt 0:00:29]} Rh8 {[%emt 0:02:55]} 39. Ke2 {[%emt 0:01:37]} Bxd2 {[%emt 0:00:28]} 40. Rxd2 {[%emt 0:00:32]} Ke6 {[%emt 0:00:57]} 41. Ke3 {[%emt 0:32:49]} g5 {[%emt 0:31:07]} 42. Re2 {[%emt 0:00:00]} Rh1 {[%emt 0:00:00]} 43. f4 {[%emt 0:00:00]} g4 {[%emt 0:00:00]} 44. Kd3+ {[%emt 0:00:00]} Kd6 {[%emt 0:00:00]} 45. Kc3 {[%emt 0:00:00]} Rc1+ {[%emt 0:00:00]} 46. Kd3 {[%emt 0:00:00]} Rg1 {[%emt 0:00:00]} 47. Re3 {[%emt 0:00:00]} Rg2 {[%emt 0:00:00]} 48. Kc3 {[%emt 0:00:00]} a3 {[%emt 0:00:00]} 49. bxa3 {[%emt 0:00:00]} Rxa2 {[%emt 0:00:00]} 50. Kb3 {[%emt 0:00:00]} Rf2 {[%emt 0:00:00]} 51. Kc3 {[%emt 0:00:00]} Kd7 {[%emt 0:00:00]} 52. Kb3 {[%emt 0:00:00]} Rf3 {[%emt 0:00:00]} 53. Rc3 {[%emt 0:00:00]} Kc6 {[%emt 0:00:00]} 54. Kc2 {[%emt 0:00:00]} Rf2+ {[%emt 0:00:00]} 55. Kb3 {[%emt 0:00:00]} Kb7 {[%emt 0:00:00]} 56. Rd3 {[%emt 0:00:00]} Kc6 {[%emt 0:00:00]} 57. Kc3 {[%emt 0:01:32]} b5 {[%emt 0:00:00]} 58. cxb5+ {[%emt 0:02:15]} Kxb5 {[%emt 0:00:00]} 59. Rd5 {[%emt 0:00:14]} Rf3+ {[%emt 0:00:00]} 60. Kc2 {[%emt 0:00:27]} Rxg3 {[%emt 0:02:34]} 61. Rxf5 {[%emt 0:00:03]} Rxa3 {[%emt 0:00:05]} 62. Rg5 {[%emt 0:00:03]} g3 {[%emt 0:00:35]} 63. f5 {[%emt 0:00:06]} Kc6 {[%emt 0:01:57]} 64. f6 {[%emt 0:00:14]} Kd6 {[%emt 0:00:14]} 65. f7 {[%emt 0:00:39]} Ke7 {[%emt 0:00:31]} 66. f8=Q+ {[%emt 0:01:33]} Kxf8 {[%emt 0:00:02]} 67. Kb2 {[%emt 0:00:06]} Rf3 {[%emt 0:00:37]} 68. Rxc5 {[%emt 0:00:07]} Kf7 {[%emt 0:00:15]} 69. Rc1 {[%emt 0:01:25]} Kf6 {[%emt 0:02:00]} 70. Kc2 {[%emt 0:00:07]} Kf5 {[%emt 0:00:48]} 71. Kd2 {[%emt 0:00:09]} Kg4 {[%emt 0:00:22]} 72. Ke2 {[%emt 0:01:32]} Rf8 {[%emt 0:02:09]} 73. Rc7 {[%emt 0:01:38]} g2 {[%emt 0:00:55]} 74. Rg7+ {[%emt 0:00:18]} Kh3 {[%emt 0:00:01]} 75. Rh7+ {[%emt 0:00:05]} Kg3 {[%emt 0:00:07]} 76. Rg7+ {[%emt 0:00:02]} Kh2 {[%emt 0:00:08]} 77. Rh7+ {[%emt 0:00:04]} Kg1 {[%emt 0:00:05]} 78. Rh6 {[%emt 0:01:22]} Re8+ {[%emt 0:00:15]} 79. Kd2 {[%emt 0:00:01]} Re5 {[%emt 0:00:58]} 80. Rh8 {[%emt 0:00:23]} Kf2 {[%emt 0:00:14]} 81. Rf8+ {[%emt 0:00:03]} Kg3 {[%emt 0:00:16]} 82. Rg8+ {[%emt 0:00:18]} Kf3 {[%emt 0:00:06]} 83. Rg7 {[%emt 0:00:49]} Re4 {[%emt 0:00:06]} 0-1

[Event "23rd Hogeschool Zeeland Open 2019"]
[Site "Vlissingen"]
[Date "2019.08.04"]
[Round "2.9"]
[White "Romanishin, Oleg M"]
[Black "Van der Borgt, Peter"]
[Result "1-0"]
[ECO "E02"]
[WhiteElo "2443"]
[BlackElo "1938"]
[Annotator "NA"]
[PlyCount "77"]
[EventDate "2019.08.03"]
[EventType "swiss"]
[EventCountry "NED"]
[SourceTitle "playchess.com"]
[Source "ChessBase"]
[SourceQuality "1"]
[TimeControl "40/5400+30:1800+30"]

1. d4 {[%emt 0:00:00]} d5 {[%emt 0:00:00]} 2. Nf3 {[%emt 0:00:00]} e6 {[%emt 0:01:05]} 3. g3 {[%emt 0:02:27]} Nf6 {[%emt 0:01:53]} 4. c4 {[%emt 0:04:28]} c6 {[%emt 0:04:22]} 5. Bg2 {[%emt 0:00:31]} Be7 {[%emt 0:02:29]} 6. O-O {[%emt 0:00:33]} O-O {[%emt 0:00:10]} 7. Nc3 {[%emt 0:00:26]} Nbd7 {[%emt 0:05:04]} 8. Qd3 {[%emt 0:01:42]} dxc4 {[%emt 0:07:08]} 9. Qxc4 {[%emt 0:00:07]} Qa5 {[%emt 0:03:35]} 10. Bf4 {[%emt 0:11:05]} Nd5 {[%emt 0:12:20]} 11. Bd2 {[%emt 0:00:36]} Nxc3 {[%emt 0:12:50]} 12. Bxc3 {[%emt 0:03:07]} Qc7 {[%emt 0:04:08]} 13. Rac1 {[%emt 0:09:06]} Nb6 {[%emt 0:07:50]} 14. Qb3 {[%emt 0:01:43]} Nd5 {[%emt 0:00:51]} 15. Bd2 {[%emt 0:00:09]} Qb6 {[%emt 0:02:09]} 16. Qc2 {[%emt 0:00:18]} h6 {[%emt 0:02:13]} 17. e4 {[%emt 0:06:15]} Nb4 {[%emt 0:06:14]} 18. Qb1 {[%emt 0:02:55]} Rd8 {[%emt 0:02:26]} 19. a3 {[%emt 0:01:47]} Na6 {[%emt 0:00:56]} 20. Be3 {[%emt 0:02:58]} Qa5 {[%emt 0:02:19]} 21. Rfd1 {[%emt 0:01:26]} Bd7 {[%emt 0:04:18]} 22. Ne5 {[%emt 0:00:18]} Be8 {[%emt 0:04:11]} 23. Nc4 {[%emt 0:00:49]} Qc7 {[%emt 0:01:53]} 24. b4 {[%emt 0:00:14]} Qb8 {[%emt 0:03:52]} 25. Bf4 {[%emt 0:02:22]} Nc7 {[%emt 0:00:09]} 26. d5 {[%emt 0:01:38]} exd5 {[%emt 0:02:14]} 27. exd5 {[%emt 0:01:40]} Bg5 {[%emt 0:00:24]} 28. Bxg5 {[%emt 0:02:36]} hxg5 {[%emt 0:00:16]} 29. dxc6 {[%emt 0:03:16]} Rxd1+ {[%emt 0:00:58]} 30. Rxd1 {[%emt 0:00:06]} Bxc6 {[%emt 0:00:09]} 31. Bxc6 {[%emt 0:02:48]} bxc6 {[%emt 0:00:01]} 32. Ne5 {[%emt 0:10:03]} Qe8 {[%emt 0:01:27]} 33. Re1 {[%emt 0:01:16]} Ne6 {[%emt 0:02:18]} 34. Qe4 {[%emt 0:01:03]} Nd8 {[%emt 0:02:35]} 35. Qf5 {[%emt 0:13:45]} Qe7 {[%emt 0:00:31]} 36. Re3 {[%emt 0:04:09]} a5 {[%emt 0:01:27]} 37. Nxc6 {[%emt 0:00:44]} Qxe3 {[%emt 0:00:17]} 38. fxe3 {[%emt 0:00:08]} Nxc6 {[%emt 0:00:06]} 39. b5 {[%emt 0:01:07]} 1-0

[Event "23rd Hogeschool Zeeland Open 2019"]
[Site "Vlissingen"]
[Date "2019.08.04"]
[Round "2.10"]
[White "De Boer, Robert"]
[Black "Leenhouts, Koen"]
[Result "0-1"]
[ECO "C58"]
[WhiteElo "1976"]
[BlackElo "2426"]
[Annotator "NA"]
[PlyCount "54"]
[EventDate "2019.08.03"]
[EventType "swiss"]
[EventCountry "NED"]
[SourceTitle "playchess.com"]
[Source "ChessBase"]
[SourceQuality "1"]
[TimeControl "40/5400+30:1800+30"]

1. e4 {[%emt 0:00:00]} e5 {[%emt 0:00:00]} 2. Nf3 {[%emt 0:00:00]} Nc6 {[%emt 0:00:01]} 3. Bc4 {[%emt 0:00:00]} Nf6 {[%emt 0:00:26]} 4. Ng5 {[%emt 0:01:12]} d5 {[%emt 0:00:56]} 5. exd5 {[%emt 0:00:05]} Na5 {[%emt 0:00:21]} 6. d3 {[%emt 0:00:06]} h6 {[%emt 0:03:21]} 7. Nf3 {[%emt 0:00:13]} e4 {[%emt 0:00:44]} 8. Qe2 {[%emt 0:01:40]} Nxc4 {[%emt 0:01:31]} 9. dxc4 {[%emt 0:00:04]} Bc5 {[%emt 0:01:09]} 10. Nc3 {[%emt 0:02:15]} O-O {[%emt 0:02:22]} 11. Nd2 {[%emt 0:04:42]} Bg4 {[%emt 0:00:25]} 12. Qf1 {[%emt 0:02:15]} e3 {[%emt 0:05:33]} 13. fxe3 {[%emt 0:01:18]} Bxe3 {[%emt 0:01:46]} 14. Nf3 {[%emt 0:01:46]} Bxc1 {[%emt 0:15:43]} 15. Rxc1 {[%emt 0:00:07]} Re8+ {[%emt 0:00:06]} 16. Kf2 {[%emt 0:15:19]} Qd6 {[%emt 0:04:49]} 17. Qd3 {[%emt 0:09:27]} Bxf3 {[%emt 0:00:54]} 18. gxf3 {[%emt 0:01:10]} Qf4 {[%emt 0:14:23]} 19. Ne2 {[%emt 0:14:12]} Ng4+ {[%emt 0:00:44]} 20. Kg2 {[%emt 0:01:13]} Ne3+ {[%emt 0:01:32]} 21. Kf2 {[%emt 0:04:01]} Ng4+ {[%emt 0:05:36]} 22. Kg2 {[%emt 0:02:40]} Rxe2+ {[%emt 0:01:42]} 23. Qxe2 {[%emt 0:00:52]} Ne3+ {[%emt 0:00:06]} 24. Kh3 {[%emt 0:01:49]} g5 {[%emt 0:01:37]} 25. Qf2 {[%emt 0:01:14]} g4+ {[%emt 0:00:09]} 26. Kh4 {[%emt 0:00:16]} Nf5+ {[%emt 0:00:17]} 27. Kh5 {[%emt 0:00:06]} Qg5# {[%emt 0:37:17]} 0-1

[Event "23rd Hogeschool Zeeland Open 2019"]
[Site "Vlissingen"]
[Date "2019.08.04"]
[Round "2.12"]
[White "Verbruggen, Samuel"]
[Black "De Jong, Migchiel"]
[Result "0-1"]
[ECO "B42"]
[WhiteElo "1960"]
[BlackElo "2345"]
[Annotator "NA"]
[PlyCount "58"]
[EventDate "2019.08.03"]
[EventType "swiss"]
[EventCountry "NED"]
[SourceTitle "playchess.com"]
[Source "ChessBase"]
[SourceQuality "1"]
[TimeControl "40/5400+30:1800+30"]

1. e4 {[%emt 0:06:38]} c5 {[%emt 0:00:48]} 2. Nf3 {[%emt 0:00:33]} e6 {[%emt 0:00:16]} 3. d4 {[%emt 0:00:08]} cxd4 {[%emt 0:00:06]} 4. Nxd4 {[%emt 0:00:15]} a6 {[%emt 0:00:07]} 5. Bd3 {[%emt 0:00:37]} Nf6 {[%emt 0:01:19]} 6. Qe2 {[%emt 0:09:02]} d6 {[%emt 0:03:45]} 7. O-O {[%emt 0:04:25]} Nbd7 {[%emt 0:06:29]} 8. Nc3 {[%emt 0:05:06]} Qb6 {[%emt 0:08:36]} 9. Nb3 {[%emt 0:09:08]} Qc7 {[%emt 0:01:17]} 10. Bd2 {[%emt 0:08:43]} Be7 {[%emt 0:04:18]} 11. Rae1 {[%emt 0:02:52]} O-O {[%emt 0:06:12]} 12. f4 {[%emt 0:06:29]} e5 {[%emt 0:04:01]} 13. f5 {[%emt 0:05:17]} b5 {[%emt 0:00:54]} 14. a3 {[%emt 0:04:38]} Bb7 {[%emt 0:02:04]} 15. g4 {[%emt 0:01:12]} h6 {[%emt 0:02:31]} 16. g5 {[%emt 0:01:30]} hxg5 {[%emt 0:00:19]} 17. Bxg5 {[%emt 0:00:08]} Rfe8 {[%emt 0:02:03]} 18. Qg2 {[%emt 0:13:10]} Kf8 {[%emt 0:06:28]} 19. Qh3 {[%emt 0:04:42]} Ng8 {[%emt 0:00:46]} 20. Bxe7+ {[%emt 0:06:38]} Kxe7 {[%emt 0:01:08]} 21. Nd5+ {[%emt 0:05:07]} Bxd5 {[%emt 0:00:09]} 22. f6+ {[%emt 0:01:18]} Ngxf6 {[%emt 0:01:04]} 23. exd5 {[%emt 0:00:06]} Rh8 {[%emt 0:03:01]} 24. Qf3 {[%emt 0:01:03]} Rh4 {[%emt 0:01:26]} 25. Re4 {[%emt 0:01:39]} Qa7+ {[%emt 0:03:33]} 26. Re3 {[%emt 0:02:04]} Rah8 {[%emt 0:03:01]} 27. Rf2 {[%emt 0:00:06]} Rh3 {[%emt 0:02:08]} 28. Qxh3 {[%emt 0:00:53]} Rxh3 {[%emt 0:00:08]} 29. Rxh3 {[%emt 0:00:05]} Ng4 {[%emt 0:00:12]} 0-1

[Event "23rd Hogeschool Zeeland Open 2019"]
[Site "Vlissingen"]
[Date "2019.08.04"]
[Round "2.13"]
[White "Grochal, Joey"]
[Black "Dittmar, Lars"]
[Result "1-0"]
[ECO "E12"]
[WhiteElo "2313"]
[BlackElo "1882"]
[Annotator "NA"]
[PlyCount "83"]
[EventDate "2019.08.03"]
[EventType "swiss"]
[EventCountry "NED"]
[SourceTitle "playchess.com"]
[Source "ChessBase"]
[SourceQuality "1"]
[TimeControl "40/5400+30:1800+30"]

1. d4 {[%emt 0:00:00]} Nf6 {[%emt 0:00:00]} 2. c4 {[%emt 0:00:00]} e6 {[%emt 0:00:00]} 3. Nf3 {[%emt 0:00:00]} b6 {[%emt 0:00:00]} 4. a3 {[%emt 0:00:00]} Bb7 {[%emt 0:00:12]} 5. Nc3 {[%emt 0:00:02]} Be7 {[%emt 0:01:09]} 6. d5 {[%emt 0:00:32]} O-O {[%emt 0:03:14]} 7. e4 {[%emt 0:00:13]} d6 {[%emt 0:03:29]} 8. Be2 {[%emt 0:01:29]} c5 {[%emt 0:10:40]} 9. O-O {[%emt 0:02:26]} exd5 {[%emt 0:05:14]} 10. cxd5 {[%emt 0:01:44]} Nfd7 {[%emt 0:02:57]} 11. Bf4 {[%emt 0:03:26]} Re8 {[%emt 0:13:52]} 12. Qd2 {[%emt 0:04:28]} Nf8 {[%emt 0:05:04]} 13. Rfe1 {[%emt 0:08:51]} Ng6 {[%emt 0:02:39]} 14. Bg3 {[%emt 0:00:42]} Nd7 {[%emt 0:02:17]} 15. Rad1 {[%emt 0:00:56]} Bf8 {[%emt 0:02:15]} 16. Bc4 {[%emt 0:04:37]} a6 {[%emt 0:06:13]} 17. a4 {[%emt 0:00:26]} Qf6 {[%emt 0:01:24]} 18. h3 {[%emt 0:04:25]} Nde5 {[%emt 0:08:05]} 19. Be2 {[%emt 0:00:35]} Nxf3+ {[%emt 0:03:13]} 20. Bxf3 {[%emt 0:00:09]} Rad8 {[%emt 0:00:28]} 21. Be2 {[%emt 0:02:40]} Qe7 {[%emt 0:07:14]} 22. f4 {[%emt 0:03:28]} f6 {[%emt 0:00:40]} 23. Bh5 {[%emt 0:00:31]} Bc8 {[%emt 0:02:09]} 24. f5 {[%emt 0:00:58]} Ne5 {[%emt 0:00:16]} 25. Bxe8 {[%emt 0:00:09]} Qxe8 {[%emt 0:00:19]} 26. b3 {[%emt 0:01:45]} g6 {[%emt 0:03:14]} 27. fxg6 {[%emt 0:02:57]} Qxg6 {[%emt 0:00:57]} 28. Kh2 {[%emt 0:03:40]} Bh6 {[%emt 0:02:31]} 29. Qf2 {[%emt 0:02:57]} Kf7 {[%emt 0:06:11]} 30. Rf1 {[%emt 0:03:22]} Rg8 {[%emt 0:00:28]} 31. Ne2 {[%emt 0:06:00]} Bg5 {[%emt 0:02:33]} 32. Bxe5 {[%emt 0:03:26]} dxe5 {[%emt 0:00:20]} 33. Qf3 {[%emt 0:01:02]} Bd7 {[%emt 0:01:59]} 34. Kh1 {[%emt 0:03:12]} Bh4 {[%emt 0:01:53]} 35. Rd3 {[%emt 0:05:21]} b5 {[%emt 0:01:07]} 36. Rc3 {[%emt 0:01:04]} bxa4 {[%emt 0:02:06]} 37. bxa4 {[%emt 0:01:30]} Bxa4 {[%emt 0:00:36]} 38. Rxc5 {[%emt 0:00:28]} Ke7 {[%emt 0:00:03]} 39. Rc7+ {[%emt 0:00:30]} Bd7 {[%emt 0:00:42]} 40. Rfc1 {[%emt 0:01:32]} Bg5 {[%emt 0:01:06]} 41. Qa3+ {[%emt 0:30:26]} Kd8 {[%emt 0:30:19]} 42. Qd6 {[%emt 0:00:13]} 1-0

[Event "23rd Hogeschool Zeeland Open 2019"]
[Site "Vlissingen"]
[Date "2019.08.04"]
[Round "2.14"]
[White "Tibke, Jonas"]
[Black "Grooten, Herman"]
[Result "1-0"]
[ECO "B22"]
[WhiteElo "1937"]
[BlackElo "2310"]
[Annotator "NA"]
[PlyCount "82"]
[EventDate "2019.08.03"]
[EventType "swiss"]
[EventCountry "NED"]
[SourceTitle "playchess.com"]
[Source "ChessBase"]
[SourceQuality "1"]
[TimeControl "40/5400+30:1800+30"]

1. e4 {[%emt 0:00:00]} c5 {[%emt 0:00:00]} 2. c3 {[%emt 0:00:00]} Nf6 {[%emt 0:00:00]} 3. e5 {[%emt 0:00:00]} Nd5 {[%emt 0:00:00]} 4. d4 {[%emt 0:00:00]} cxd4 {[%emt 0:00:02]} 5. cxd4 {[%emt 0:00:03]} d6 {[%emt 0:00:17]} 6. Nf3 {[%emt 0:00:52]} Nc6 {[%emt 0:00:18]} 7. Bc4 {[%emt 0:03:32]} e6 {[%emt 0:00:15]} 8. O-O {[%emt 0:00:36]} Be7 {[%emt 0:00:28]} 9. Nbd2 {[%emt 0:05:51]} Nb6 {[%emt 0:07:02]} 10. Bb3 {[%emt 0:00:44]} dxe5 {[%emt 0:02:30]} 11. dxe5 {[%emt 0:00:22]} Nb4 {[%emt 0:04:09]} 12. a3 {[%emt 0:04:14]} N4d5 {[%emt 0:03:08]} 13. Ne4 {[%emt 0:00:49]} h6 {[%emt 0:00:44]} 14. Qd3 {[%emt 0:03:58]} Bd7 {[%emt 0:00:47]} 15. Be3 {[%emt 0:06:36]} Bc6 {[%emt 0:01:46]} 16. Rfd1 {[%emt 0:05:03]} Nxe3 {[%emt 0:05:49]} 17. Qxe3 {[%emt 0:03:46]} Nd5 {[%emt 0:01:32]} 18. Qd3 {[%emt 0:07:25]} Qa5 {[%emt 0:01:50]} 19. Nd4 {[%emt 0:03:31]} O-O {[%emt 0:06:17]} 20. Bc2 {[%emt 0:06:51]} Rfd8 {[%emt 0:04:41]} 21. Nd6 {[%emt 0:08:32]} Bxd6 {[%emt 0:06:43]} 22. Qh7+ {[%emt 0:00:06]} Kf8 {[%emt 0:00:07]} 23. exd6 {[%emt 0:01:08]} Rxd6 {[%emt 0:07:48]} 24. Qh8+ {[%emt 0:01:03]} Ke7 {[%emt 0:00:04]} 25. Qxa8 {[%emt 0:00:18]} Qb6 {[%emt 0:15:37]} 26. Qh8 {[%emt 0:03:33]} Nf4 {[%emt 0:01:05]} 27. Nxc6+ {[%emt 0:10:35]} Qxc6 {[%emt 0:01:17]} 28. Qxg7 {[%emt 0:00:09]} Qxc2 {[%emt 0:00:53]} 29. Rxd6 {[%emt 0:00:53]} Kxd6 {[%emt 0:00:10]} 30. Qd4+ {[%emt 0:00:33]} Nd5 {[%emt 0:00:08]} 31. b4 {[%emt 0:01:48]} b6 {[%emt 0:00:44]} 32. Rd1 {[%emt 0:00:49]} Kc6 {[%emt 0:00:48]} 33. g3 {[%emt 0:01:59]} Kb5 {[%emt 0:02:51]} 34. h3 {[%emt 0:02:37]} Ka4 {[%emt 0:02:05]} 35. Rd3 {[%emt 0:00:49]} f5 {[%emt 0:04:34]} 36. Rf3 {[%emt 0:04:41]} a6 {[%emt 0:02:35]} 37. Qg7 {[%emt 0:01:40]} Qe4 {[%emt 0:06:20]} 38. Qd7+ {[%emt 0:00:46]} b5 {[%emt 0:00:05]} 39. Kg2 {[%emt 0:00:20]} Qe5 {[%emt 0:07:40]} 40. Qc6 {[%emt 0:01:41]} Nc7 {[%emt 0:00:42]} 41. Qb6 {[%emt 0:30:17]} Qd5 {[%emt 0:36:39]} 1-0